[Event "Queens Festival Europe 2022"]
[Site "Tornelo"]
[Date "2022.06.19"]
[Round "1.7"]
[White "Ismayilova, Salbinaz"]
[Black "Hariharan, Shambavi"]
[Result "0-1"]
[ECO "B13"]
[WhiteElo "1090"]
[BlackElo "1517"]
[Annotator "NA RC"]
[PlyCount "111"]
[EventDate "2022.06.19"]
[EventType "swiss"]
[EventCountry "NET"]
[SourceTitle "playchess.com"]
[Source "ChessBase"]
[SourceQuality "1"]
[TimeControl "180+2"]

1. e4 {[%emt 0:00:02]} c6 {[%emt 0:00:04]} 2. d4 {[%emt 0:00:03]} d5 {[%emt 0:00:01]} 3. exd5 {[%emt 0:00:04]} cxd5 {[%emt 0:00:02]} 4. Nf3 {[%emt 0:00:05]} Nc6 {[%emt 0:00:01]} 5. Bb5 {[%emt 0:00:06]} Nf6 {[%emt 0:00:02]} 6. Nc3 {[%emt 0:00:03]} Bd7 {[%emt 0:00:04]} 7. O-O {[%emt 0:00:05]} e6 {[%emt 0:00:02]} 8. a3 {[%emt 0:00:03]} Be7 {[%emt 0:00:01]} 9. Bf4 {[%emt 0:00:03]} O-O {[%emt 0:00:02]} 10. Bxc6 {[%emt 0:00:04]} Bxc6 {[%emt 0:00:02]} 11. Ne5 {[%emt 0:00:02]} Re8 {[%emt 0:00:06]} 12. Nxc6 {[%emt 0:00:12]} bxc6 {[%emt 0:00:02]} 13. Qd3 {[%emt 0:00:07]} h6 {[%emt 0:00:05]} 14. Rfe1 {[%emt 0:00:07]} Bd6 {[%emt 0:00:02]} 15. Bxd6 {[%emt 0:00:02]} Qxd6 {[%emt 0:00:02]} 16. Ne2 {[%emt 0:00:03]} Ne4 {[%emt 0:00:04]} 17. Ng3 {[%emt 0:00:11]} Nxg3 {[%emt 0:00:03]} 18. fxg3 {[%emt 0:00:02]} c5 {[%emt 0:00:07]} 19. c3 {[%emt 0:00:07]} cxd4 {[%emt 0:00:06]} 20. Qxd4 {[%emt 0:00:04]} Rec8 {[%emt 0:00:05]} 21. Rad1 {[%emt 0:00:08]} Qc5 {[%emt 0:00:02]} 22. Qxc5 {[%emt 0:00:05]} Rxc5 {[%emt 0:00:02]} 23. Kf2 {[%emt 0:00:02]} Rb8 {[%emt 0:00:02]} 24. Rd2 {[%emt 0:00:06]} Rb3 {[%emt 0:00:03]} 25. Ree2 {[%emt 0:00:03]} Rcb5 {[%emt 0:00:05]} 26. Kf3 {[%emt 0:00:02]} Kf8 {[%emt 0:00:01]} 27. Kf4 {[%emt 0:00:03]} Ke7 {[%emt 0:00:03]} 28. Ke5 {[%emt 0:00:02]} f6+ {[%emt 0:00:09]} 29. Kd4 {[%emt 0:00:02]} e5+ {[%emt 0:00:03]} 30. Ke3 {[%emt 0:00:04]} Ke6 {[%emt 0:00:07]} 31. Kf3 {[%emt 0:00:10]} d4 {[%emt 0:00:09]} 32. Rxd4 {[%emt 0:00:11]} Rxb2 {[%emt 0:00:07]} 33. Rxb2 {[%emt 0:00:03]} Rxb2 {[%emt 0:00:02]} 34. Ra4 {[%emt 0:00:01]} Rb7 {[%emt 0:00:06]} 35. c4 {[%emt 0:00:03]} Rc7 {[%emt 0:00:01]} 36. Ke3 {[%emt 0:00:04]} Kd6 {[%emt 0:00:02]} 37. Kd3 {[%emt 0:00:02]} Kc5 {[%emt 0:00:18]} 38. Rb4 {[%emt 0:00:05]} Rd7+ {[%emt 0:00:14]} 39. Kc3 {[%emt 0:00:02]} a5 {[%emt 0:00:01]} 40. Rb5+ {[%emt 0:00:05]} Kc6 {[%emt 0:00:02]} 41. Rxa5 {[%emt 0:00:02]} Re7 {[%emt 0:00:06]} 42. Rb5 {[%emt 0:00:05]} Ra7 {[%emt 0:00:06]} 43. Kb4 {[%emt 0:00:09]} e4 {[%emt 0:00:10]} 44. a4 {[%emt 0:00:10]} e3 {[%emt 0:00:03]} 45. Ka3 {[%emt 0:00:09]} Re7 {[%emt 0:00:13]} 46. Rb1 {[%emt 0:00:04]} Kc5 {[%emt 0:00:04]} 47. Re1 {[%emt 0:00:28]} Kxc4 {[%emt 0:00:02]} 48. a5 {[%emt 0:00:03]} Kd3 {[%emt 0:00:03]} 49. a6 {[%emt 0:00:04]} Kd2 {[%emt 0:00:04]} 50. Rxe3 {[%emt 0:00:07]} Kxe3 {[%emt 0:00:04]} 51. Ka4 {[%emt 0:00:02]} Kf2 {[%emt 0:00:06]} 52. Kb5 {[%emt 0:00:05]} Kxg2 {[%emt 0:00:02]} 53. Kb6 {[%emt 0:00:03]} Kxh2 {[%emt 0:00:02]} 54. a7 {[%emt 0:00:02]} Rxa7 {[%emt 0:00:02]} 55. Kxa7 {[%emt 0:00:02]} Kxg3 {[%emt 0:00:01]} 56. Kb7 {[%emt 0:00:02]} 0-1

[Event "Queens Festival Europe 2022"]
[Site "Tornelo"]
[Date "2022.06.19"]
[Round "1.8"]
[White "Tsakona, Maria"]
[Black "Kanyamarala, Trisha"]
[Result "0-1"]
[ECO "B52"]
[WhiteElo "2007"]
[BlackElo "2127"]
[Annotator "NA RC"]
[PlyCount "126"]
[EventDate "2022.06.19"]
[EventType "swiss"]
[EventCountry "NET"]
[SourceTitle "playchess.com"]
[Source "ChessBase"]
[SourceQuality "1"]
[TimeControl "180+2"]

1. e4 {[%emt 0:00:02]} c5 {[%emt 0:00:10]} 2. Nf3 {[%emt 0:00:03]} d6 {[%emt 0:00:03]} 3. Bb5+ {[%emt 0:00:01]} Bd7 {[%emt 0:00:06]} 4. Bxd7+ {[%emt 0:00:02]} Nxd7 {[%emt 0:00:02]} 5. O-O {[%emt 0:00:02]} Ngf6 {[%emt 0:00:02]} 6. Re1 {[%emt 0:00:01]} e6 {[%emt 0:00:04]} 7. d4 {[%emt 0:00:09]} cxd4 {[%emt 0:00:13]} 8. Nxd4 {[%emt 0:00:00]} a6 {[%emt 0:00:01]} 9. c4 {[%emt 0:00:04]} Rc8 {[%emt 0:00:09]} 10. b3 {[%emt 0:00:02]} Be7 {[%emt 0:00:03]} 11. Bb2 {[%emt 0:00:01]} O-O {[%emt 0:00:03]} 12. Nc3 {[%emt 0:00:02]} Qa5 {[%emt 0:00:20]} 13. Qd2 {[%emt 0:00:17]} Qh5 {[%emt 0:00:36]} 14. f3 {[%emt 0:00:23]} Ne5 {[%emt 0:00:08]} 15. Rad1 {[%emt 0:00:13]} Rfd8 {[%emt 0:00:06]} 16. Qf2 {[%emt 0:00:07]} Nc6 {[%emt 0:00:24]} 17. Nde2 {[%emt 0:00:57]} Nb4 {[%emt 0:00:31]} 18. Kh1 {[%emt 0:00:21]} Qa5 {[%emt 0:00:17]} 19. Nd4 {[%emt 0:00:08]} Nc6 {[%emt 0:00:05]} 20. f4 {[%emt 0:00:02]} Nxd4 {[%emt 0:00:05]} 21. Qxd4 {[%emt 0:00:01]} Qh5 {[%emt 0:00:05]} 22. Rd3 {[%emt 0:00:08]} e5 {[%emt 0:00:02]} 23. Qg1 {[%emt 0:00:08]} exf4 {[%emt 0:00:03]} 24. Rh3 {[%emt 0:00:03]} Qa5 {[%emt 0:00:02]} 25. Qd4 {[%emt 0:00:09]} Qc5 {[%emt 0:00:04]} 26. Qd3 {[%emt 0:00:02]} b5 {[%emt 0:00:02]} 27. cxb5 {[%emt 0:00:17]} Re8 {[%emt 0:00:08]} 28. Nd5 {[%emt 0:00:02]} Nxd5 {[%emt 0:00:02]} 29. exd5 {[%emt 0:00:00]} g6 {[%emt 0:00:01]} 30. Qd2 {[%emt 0:00:12]} Bf8 {[%emt 0:00:02]} 31. Rc1 {[%emt 0:00:02]} Qxb5 {[%emt 0:00:02]} 32. Qd1 {[%emt 0:00:03]} Rxc1 {[%emt 0:00:02]} 33. Qxc1 {[%emt 0:00:00]} Qe2 {[%emt 0:00:01]} 34. Rf3 {[%emt 0:00:02]} Qe1+ {[%emt 0:00:01]} 35. Rf1 {[%emt 0:00:01]} Qxc1 {[%emt 0:00:02]} 36. Rxc1 {[%emt 0:00:00]} Rd8 {[%emt 0:00:02]} 37. Rc6 {[%emt 0:00:02]} Re8 {[%emt 0:00:01]} 38. Kg1 {[%emt 0:00:01]} Re1+ {[%emt 0:00:02]} 39. Kf2 {[%emt 0:00:02]} Rb1 {[%emt 0:00:01]} 40. Bd4 {[%emt 0:00:03]} Rd1 {[%emt 0:00:03]} 41. Bf6 {[%emt 0:00:03]} Rd2+ {[%emt 0:00:01]} 42. Kf3 {[%emt 0:00:01]} Rxa2 {[%emt 0:00:02]} 43. Rc8 {[%emt 0:00:01]} Ra3 {[%emt 0:00:03]} 44. Be7 {[%emt 0:00:02]} Rxb3+ {[%emt 0:00:01]} 45. Kxf4 {[%emt 0:00:01]} g5+ {[%emt 0:00:03]} 46. Kxg5 {[%emt 0:00:03]} h6+ {[%emt 0:00:01]} 47. Kf6 {[%emt 0:00:04]} Rb2 {[%emt 0:00:07]} 48. Rxf8+ {[%emt 0:00:01]} Kh7 {[%emt 0:00:01]} 49. Rxf7+ {[%emt 0:00:00]} Kg8 {[%emt 0:00:01]} 50. Rg7+ {[%emt 0:00:02]} Kh8 {[%emt 0:00:02]} 51. Kf7 {[%emt 0:00:02]} Rf2+ {[%emt 0:00:02]} 52. Bf6 {[%emt 0:00:01]} Rf5 {[%emt 0:00:03]} 53. Rg5+ {[%emt 0:00:03]} Rxf6+ {[%emt 0:00:01]} 54. Kxf6 {[%emt 0:00:00]} hxg5 {[%emt 0:00:01]} 55. Kxg5 {[%emt 0:00:00]} a5 {[%emt 0:00:01]} 56. Kf4 {[%emt 0:00:00]} a4 {[%emt 0:00:01]} 57. Ke3 {[%emt 0:00:00]} a3 {[%emt 0:00:01]} 58. Kd2 {[%emt 0:00:03]} a2 {[%emt 0:00:01]} 59. Kd3 {[%emt 0:00:09]} a1=Q {[%emt 0:00:03]} 60. Ke4 {[%emt 0:00:00]} Qe5+ {[%emt 0:00:02]} 61. Kf3 {[%emt 0:00:00]} Qxh2 {[%emt 0:00:01]} 62. Kg4 {[%emt 0:00:00]} Qxg2+ {[%emt 0:00:02]} 63. Kh5 {[%emt 0:00:00]} Qxd5+ {[%emt 0:00:02]} 0-1

[Event "Queens Festival Europe 2022"]
[Site "Tornelo"]
[Date "2022.06.19"]
[Round "1.8"]
[White "Shuqja, Klean"]
[Black "Gjergji, Rozana"]
[Result "1-0"]
[ECO "C72"]
[WhiteElo "1839"]
[BlackElo "1920"]
[Annotator "NA RC"]
[PlyCount "93"]
[EventDate "2022.06.19"]
[EventType "swiss"]
[EventCountry "NET"]
[SourceTitle "playchess.com"]
[Source "ChessBase"]
[SourceQuality "1"]
[TimeControl "180+2"]

1. e4 {[%emt 0:00:02]} e5 {[%emt 0:00:06]} 2. Nf3 {[%emt 0:00:03]} Nc6 {[%emt 0:00:02]} 3. Bb5 {[%emt 0:00:02]} a6 {[%emt 0:00:02]} 4. Ba4 {[%emt 0:00:01]} d6 {[%emt 0:00:02]} 5. O-O {[%emt 0:00:03]} f5 {[%emt 0:00:03]} 6. exf5 {[%emt 0:00:40]} Bxf5 {[%emt 0:00:04]} 7. d4 {[%emt 0:00:10]} b5 {[%emt 0:00:11]} 8. Bb3 {[%emt 0:00:13]} Be7 {[%emt 0:00:08]} 9. Bd5 {[%emt 0:00:12]} Bd7 {[%emt 0:00:22]} 10. dxe5 {[%emt 0:00:23]} dxe5 {[%emt 0:00:14]} 11. Bxc6 {[%emt 0:00:03]} Bxc6 {[%emt 0:00:06]} 12. Nxe5 {[%emt 0:00:02]} Qxd1 {[%emt 0:00:11]} 13. Rxd1 {[%emt 0:00:03]} Be4 {[%emt 0:00:04]} 14. c3 {[%emt 0:00:18]} Nf6 {[%emt 0:00:03]} 15. Nd2 {[%emt 0:00:14]} O-O {[%emt 0:00:02]} 16. Nxe4 {[%emt 0:00:17]} Nxe4 {[%emt 0:00:03]} 17. Be3 {[%emt 0:00:05]} Bd6 {[%emt 0:00:02]} 18. Nf3 {[%emt 0:00:05]} Rae8 {[%emt 0:00:03]} 19. a4 {[%emt 0:00:03]} Nc5 {[%emt 0:00:14]} 20. axb5 {[%emt 0:00:19]} axb5 {[%emt 0:00:04]} 21. Bxc5 {[%emt 0:00:06]} Bxc5 {[%emt 0:00:08]} 22. Re1 {[%emt 0:00:01]} Bb6 {[%emt 0:00:14]} 23. b4 {[%emt 0:00:06]} h6 {[%emt 0:00:08]} 24. Rxe8 {[%emt 0:00:07]} Rxe8 {[%emt 0:00:03]} 25. Re1 {[%emt 0:00:01]} Rxe1+ {[%emt 0:00:14]} 26. Nxe1 {[%emt 0:00:02]} Kf7 {[%emt 0:00:03]} 27. Kf1 {[%emt 0:00:02]} Ke6 {[%emt 0:00:01]} 28. Ke2 {[%emt 0:00:01]} Kd5 {[%emt 0:00:03]} 29. Kd3 {[%emt 0:00:02]} Bxf2 {[%emt 0:00:03]} 30. Nc2 {[%emt 0:00:04]} c5 {[%emt 0:00:07]} 31. bxc5 {[%emt 0:00:02]} Kxc5 {[%emt 0:00:03]} 32. g4 {[%emt 0:00:03]} Bg1 {[%emt 0:00:13]} 33. h3 {[%emt 0:00:02]} Bh2 {[%emt 0:00:04]} 34. Na3 {[%emt 0:00:02]} Be5 {[%emt 0:00:05]} 35. Nc2 {[%emt 0:00:02]} Bf6 {[%emt 0:00:06]} 36. Na3 {[%emt 0:00:02]} b4 {[%emt 0:00:08]} 37. cxb4+ {[%emt 0:00:02]} Kxb4 {[%emt 0:00:03]} 38. Nc2+ {[%emt 0:00:02]} Kc5 {[%emt 0:00:03]} 39. Ke4 {[%emt 0:00:01]} Kd6 {[%emt 0:00:02]} 40. Kf5 {[%emt 0:00:01]} Kd5 {[%emt 0:00:05]} 41. Ne3+ {[%emt 0:00:06]} Kd4 {[%emt 0:00:05]} 42. Ng2 {[%emt 0:00:02]} Kd3 {[%emt 0:00:07]} 43. Nf4+ {[%emt 0:00:01]} Ke3 {[%emt 0:00:02]} 44. Nd5+ {[%emt 0:00:03]} Kf3 {[%emt 0:00:07]} 45. Nxf6 {[%emt 0:00:02]} gxf6 {[%emt 0:00:03]} 46. h4 {[%emt 0:00:04]} Kg3 {[%emt 0:00:05]} 47. h5 {[%emt 0:00:02]} 1-0

[Event "Queens Festival Europe 2022"]
[Site "Tornelo"]
[Date "2022.06.19"]
[Round "1.9"]
[White "Okuyaz, Duru"]
[Black "Ismayil, Malak"]
[Result "1-0"]
[ECO "C90"]
[WhiteElo "2090"]
[BlackElo "2001"]
[Annotator "NA RC"]
[PlyCount "95"]
[EventDate "2022.06.19"]
[EventType "swiss"]
[EventCountry "NET"]
[SourceTitle "playchess.com"]
[Source "ChessBase"]
[SourceQuality "1"]
[TimeControl "180+2"]

1. e4 {[%emt 0:00:02]} e5 {[%emt 0:00:05]} 2. Nf3 {[%emt 0:00:02]} Nc6 {[%emt 0:00:02]} 3. Bb5 {[%emt 0:00:01]} a6 {[%emt 0:00:01]} 4. Ba4 {[%emt 0:00:02]} Nf6 {[%emt 0:00:03]} 5. O-O {[%emt 0:00:01]} b5 {[%emt 0:00:01]} 6. Bb3 {[%emt 0:00:01]} Be7 {[%emt 0:00:02]} 7. Re1 {[%emt 0:00:01]} O-O {[%emt 0:00:01]} 8. c3 {[%emt 0:00:01]} d6 {[%emt 0:00:02]} 9. d3 {[%emt 0:00:03]} h6 {[%emt 0:00:03]} 10. Nbd2 {[%emt 0:00:01]} Re8 {[%emt 0:00:02]} 11. Nf1 {[%emt 0:00:02]} Bf8 {[%emt 0:00:01]} 12. Ng3 {[%emt 0:00:07]} Qe7 {[%emt 0:00:04]} 13. Nh4 {[%emt 0:00:04]} Be6 {[%emt 0:00:53]} 14. Nhf5 {[%emt 0:00:20]} Qd8 {[%emt 0:00:10]} 15. d4 {[%emt 0:00:08]} exd4 {[%emt 0:00:05]} 16. cxd4 {[%emt 0:00:04]} Bxb3 {[%emt 0:00:11]} 17. Qxb3 {[%emt 0:00:04]} Na5 {[%emt 0:00:05]} 18. Qf3 {[%emt 0:00:04]} c5 {[%emt 0:00:18]} 19. dxc5 {[%emt 0:00:05]} dxc5 {[%emt 0:00:02]} 20. Bf4 {[%emt 0:00:04]} Nc4 {[%emt 0:00:12]} 21. Rad1 {[%emt 0:00:21]} Qb6 {[%emt 0:00:01]} 22. b3 {[%emt 0:00:04]} Ne5 {[%emt 0:00:02]} 23. Qc3 {[%emt 0:00:12]} Ng6 {[%emt 0:00:03]} 24. Bd6 {[%emt 0:00:05]} Rad8 {[%emt 0:00:17]} 25. e5 {[%emt 0:00:07]} Nh7 {[%emt 0:00:26]} 26. Bxf8 {[%emt 0:00:04]} Rxd1 {[%emt 0:00:04]} 27. Rxd1 {[%emt 0:00:02]} Nhxf8 {[%emt 0:00:02]} 28. e6 {[%emt 0:00:18]} Nxe6 {[%emt 0:00:03]} 29. Rd6 {[%emt 0:00:01]} Qc7 {[%emt 0:00:02]} 30. Nh5 {[%emt 0:00:17]} f6 {[%emt 0:00:10]} 31. Qd2 {[%emt 0:00:05]} Ne5 {[%emt 0:00:05]} 32. Nxh6+ {[%emt 0:00:10]} Kf8 {[%emt 0:00:12]} 33. Nf5 {[%emt 0:00:03]} Qf7 {[%emt 0:00:09]} 34. Nfxg7 {[%emt 0:00:07]} Nxg7 {[%emt 0:00:03]} 35. Rxf6 {[%emt 0:00:03]} Nxh5 {[%emt 0:00:02]} 36. Rxf7+ {[%emt 0:00:01]} Nxf7 {[%emt 0:00:02]} 37. h3 {[%emt 0:00:04]} Nf6 {[%emt 0:00:02]} 38. Qf4 {[%emt 0:00:03]} Kg7 {[%emt 0:00:01]} 39. Qg3+ {[%emt 0:00:02]} Kf8 {[%emt 0:00:02]} 40. Qc7 {[%emt 0:00:03]} Ne4 {[%emt 0:00:03]} 41. f3 {[%emt 0:00:04]} Nf6 {[%emt 0:00:01]} 42. Qxc5+ {[%emt 0:00:01]} Kg7 {[%emt 0:00:01]} 43. h4 {[%emt 0:00:02]} Re5 {[%emt 0:00:02]} 44. Qc1 {[%emt 0:00:03]} Nd5 {[%emt 0:00:02]} 45. g4 {[%emt 0:00:04]} Re3 {[%emt 0:00:07]} 46. Kf2 {[%emt 0:00:03]} Rd3 {[%emt 0:00:01]} 47. Qb2+ {[%emt 0:00:02]} Kf8 {[%emt 0:00:02]} 48. Qc2 {[%emt 0:00:03]} 1-0

[Event "Queens Festival Europe 2022"]
[Site "Tornelo"]
[Date "2022.06.19"]
[Round "1.9"]
[White "Sava, Ana-Maria"]
[Black "Rahimli, Izzat"]
[Result "1-0"]
[ECO "C01"]
[WhiteElo "1916"]
[BlackElo "1817"]
[Annotator "NA RC"]
[PlyCount "75"]
[EventDate "2022.06.19"]
[EventType "swiss"]
[EventCountry "NET"]
[SourceTitle "playchess.com"]
[Source "ChessBase"]
[SourceQuality "1"]
[TimeControl "180+2"]

1. e4 {[%emt 0:00:02]} e6 {[%emt 0:00:06]} 2. d4 {[%emt 0:00:02]} d5 {[%emt 0:00:03]} 3. exd5 {[%emt 0:00:02]} exd5 {[%emt 0:00:03]} 4. Nf3 {[%emt 0:00:02]} Nf6 {[%emt 0:00:03]} 5. Bg5 {[%emt 0:00:02]} Be7 {[%emt 0:00:02]} 6. Bd3 {[%emt 0:00:04]} h6 {[%emt 0:00:04]} 7. Bf4 {[%emt 0:00:04]} O-O {[%emt 0:00:11]} 8. O-O {[%emt 0:00:03]} b6 {[%emt 0:00:04]} 9. Re1 {[%emt 0:00:04]} Bb7 {[%emt 0:00:06]} 10. c3 {[%emt 0:00:03]} c5 {[%emt 0:00:02]} 11. Ne5 {[%emt 0:00:03]} Nbd7 {[%emt 0:00:05]} 12. Nd2 {[%emt 0:00:04]} Re8 {[%emt 0:00:28]} 13. Ndf3 {[%emt 0:00:04]} Nf8 {[%emt 0:00:03]} 14. Bb5 {[%emt 0:00:09]} N8d7 {[%emt 0:00:11]} 15. Nxd7 {[%emt 0:00:04]} Nxd7 {[%emt 0:00:03]} 16. Ne5 {[%emt 0:00:01]} Nxe5 {[%emt 0:00:24]} 17. Bxe5 {[%emt 0:00:03]} Rf8 {[%emt 0:00:06]} 18. Qg4 {[%emt 0:00:03]} Bf6 {[%emt 0:00:06]} 19. Bf4 {[%emt 0:00:04]} Kh8 {[%emt 0:00:06]} 20. Qg3 {[%emt 0:00:12]} cxd4 {[%emt 0:00:25]} 21. cxd4 {[%emt 0:00:03]} Bxd4 {[%emt 0:00:04]} 22. Bd6 {[%emt 0:00:04]} Rg8 {[%emt 0:00:09]} 23. Be7 {[%emt 0:00:05]} Qc8 {[%emt 0:00:10]} 24. Rac1 {[%emt 0:00:02]} Qf5 {[%emt 0:00:08]} 25. b3 {[%emt 0:00:07]} Rac8 {[%emt 0:00:06]} 26. Bd3 {[%emt 0:00:24]} Bxf2+ {[%emt 0:00:13]} 27. Qxf2 {[%emt 0:00:09]} Qxd3 {[%emt 0:00:02]} 28. Rxc8 {[%emt 0:00:16]} Rxc8 {[%emt 0:00:04]} 29. Qxf7 {[%emt 0:00:02]} Qd4+ {[%emt 0:00:04]} 30. Kh1 {[%emt 0:00:02]} Ba6 {[%emt 0:00:05]} 31. Qe6 {[%emt 0:00:13]} Rg8 {[%emt 0:00:03]} 32. Ba3 {[%emt 0:00:08]} Bb7 {[%emt 0:00:05]} 33. Bc1 {[%emt 0:00:04]} Qh4 {[%emt 0:00:06]} 34. Qf7 {[%emt 0:00:06]} Ba8 {[%emt 0:00:04]} 35. Rg1 {[%emt 0:00:03]} d4 {[%emt 0:00:03]} 36. Qf5 {[%emt 0:00:06]} d3 {[%emt 0:00:05]} 37. Qxd3 {[%emt 0:00:02]} Qh5 {[%emt 0:00:02]} 38. Qg3 {[%emt 0:00:02]} 1-0

[Event "Queens Festival Europe 2022"]
[Site "Tornelo"]
[Date "2022.06.19"]
[Round "1.10"]
[White "Malikova, Ulviyya"]
[Black "Stastna, Martina"]
[Result "0-1"]
[ECO "E14"]
[WhiteElo "1805"]
[BlackElo "1912"]
[Annotator "NA RC"]
[PlyCount "62"]
[EventDate "2022.06.19"]
[EventType "swiss"]
[EventCountry "NET"]
[SourceTitle "playchess.com"]
[Source "ChessBase"]
[SourceQuality "1"]
[TimeControl "180+2"]

1. d4 {[%emt 0:00:02]} d5 {[%emt 0:00:05]} 2. c4 {[%emt 0:00:03]} Nf6 {[%emt 0:00:05]} 3. Nf3 {[%emt 0:00:08]} e6 {[%emt 0:00:04]} 4. e3 {[%emt 0:00:04]} Be7 {[%emt 0:00:11]} 5. Be2 {[%emt 0:00:09]} Nbd7 {[%emt 0:00:07]} 6. O-O {[%emt 0:00:03]} O-O {[%emt 0:00:03]} 7. b3 {[%emt 0:00:05]} c5 {[%emt 0:00:11]} 8. Bb2 {[%emt 0:00:07]} b6 {[%emt 0:00:16]} 9. Nc3 {[%emt 0:00:03]} Bb7 {[%emt 0:00:02]} 10. Rc1 {[%emt 0:00:11]} Rc8 {[%emt 0:00:08]} 11. cxd5 {[%emt 0:00:07]} Nxd5 {[%emt 0:00:04]} 12. Nxd5 {[%emt 0:00:30]} Bxd5 {[%emt 0:00:03]} 13. Ba6 {[%emt 0:00:09]} Rc7 {[%emt 0:00:14]} 14. Qe2 {[%emt 0:00:03]} Nf6 {[%emt 0:00:05]} 15. Rfd1 {[%emt 0:00:04]} Qb8 {[%emt 0:00:25]} 16. dxc5 {[%emt 0:00:16]} Rxc5 {[%emt 0:00:08]} 17. Rxc5 {[%emt 0:00:04]} Bxc5 {[%emt 0:00:02]} 18. Bxf6 {[%emt 0:00:34]} gxf6 {[%emt 0:00:02]} 19. Ne1 {[%emt 0:00:18]} Qe5 {[%emt 0:00:16]} 20. Nd3 {[%emt 0:00:06]} Qg5 {[%emt 0:00:03]} 21. e4 {[%emt 0:00:04]} Bc6 {[%emt 0:00:05]} 22. Nxc5 {[%emt 0:00:04]} Qxc5 {[%emt 0:00:03]} 23. Qg4+ {[%emt 0:00:02]} Qg5 {[%emt 0:00:02]} 24. Qxg5+ {[%emt 0:00:04]} fxg5 {[%emt 0:00:04]} 25. f3 {[%emt 0:00:05]} Kg7 {[%emt 0:00:09]} 26. Kf2 {[%emt 0:00:02]} Kf6 {[%emt 0:00:03]} 27. Ke3 {[%emt 0:00:02]} Ke7 {[%emt 0:00:03]} 28. e5 {[%emt 0:00:06]} f6 {[%emt 0:00:25]} 29. exf6+ {[%emt 0:00:06]} Rxf6 {[%emt 0:00:09]} 30. Bd3 {[%emt 0:00:16]} h6 {[%emt 0:00:03]} 31. Be4 {[%emt 0:00:02]} Bb5 {[%emt 0:00:05]} 0-1

[Event "Queens Festival Europe 2022"]
[Site "Tornelo"]
[Date "2022.06.19"]
[Round "2.1"]
[White "Machlik, Monika"]
[Black "Gueci, Tea"]
[Result "1-0"]
[ECO "A43"]
[WhiteElo "2134"]
[BlackElo "2248"]
[Annotator "NA RC"]
[PlyCount "87"]
[EventDate "2022.06.19"]
[EventType "swiss"]
[EventCountry "NET"]
[SourceTitle "playchess.com"]
[Source "ChessBase"]
[SourceQuality "1"]
[TimeControl "180+2"]

1. d4 {[%emt 0:00:02]} g6 {[%emt 0:00:04]} 2. c4 {[%emt 0:00:03]} Bg7 {[%emt 0:00:00]} 3. Nc3 {[%emt 0:00:02]} d6 {[%emt 0:00:03]} 4. e4 {[%emt 0:00:05]} c5 {[%emt 0:00:01]} 5. d5 {[%emt 0:00:02]} Bxc3+ {[%emt 0:00:15]} 6. bxc3 {[%emt 0:00:02]} e5 {[%emt 0:00:03]} 7. g3 {[%emt 0:00:14]} h5 {[%emt 0:00:15]} 8. Bh3 {[%emt 0:00:06]} Nf6 {[%emt 0:00:03]} 9. Bg5 {[%emt 0:00:10]} Nbd7 {[%emt 0:00:15]} 10. Ne2 {[%emt 0:00:08]} Qa5 {[%emt 0:00:12]} 11. Qd3 {[%emt 0:00:08]} Nh7 {[%emt 0:00:05]} 12. Bd2 {[%emt 0:00:07]} Ndf6 {[%emt 0:00:11]} 13. Bxc8 {[%emt 0:00:03]} Rxc8 {[%emt 0:00:00]} 14. O-O {[%emt 0:00:06]} h4 {[%emt 0:00:02]} 15. f4 {[%emt 0:00:05]} hxg3 {[%emt 0:00:06]} 16. Nxg3 {[%emt 0:00:15]} exf4 {[%emt 0:00:08]} 17. Bxf4 {[%emt 0:00:02]} Qd8 {[%emt 0:00:09]} 18. e5 {[%emt 0:00:05]} Ng4 {[%emt 0:00:31]} 19. exd6 {[%emt 0:00:11]} Qh4 {[%emt 0:00:33]} 20. Qe2+ {[%emt 0:00:15]} Kf8 {[%emt 0:00:04]} 21. d7 {[%emt 0:00:14]} Rd8 {[%emt 0:00:06]} 22. Bd6+ {[%emt 0:00:02]} Kg7 {[%emt 0:00:06]} 23. Be7 {[%emt 0:00:02]} Nhf6 {[%emt 0:00:04]} 24. Bxd8 {[%emt 0:00:06]} Rxd8 {[%emt 0:00:02]} 25. Rf4 {[%emt 0:00:13]} Qg5 {[%emt 0:00:07]} 26. Raf1 {[%emt 0:00:06]} Rxd7 {[%emt 0:00:01]} 27. Qf2 {[%emt 0:00:12]} b6 {[%emt 0:00:20]} 28. Qe2 {[%emt 0:00:05]} Nh5 {[%emt 0:00:05]} 29. Rxg4 {[%emt 0:00:04]} Nxg3 {[%emt 0:00:02]} 30. Rxg3 {[%emt 0:00:03]} Qh6 {[%emt 0:00:03]} 31. Qe3 {[%emt 0:00:02]} Qh5 {[%emt 0:00:03]} 32. Qf3 {[%emt 0:00:02]} Qe5 {[%emt 0:00:02]} 33. Qe3 {[%emt 0:00:07]} Qh5 {[%emt 0:00:03]} 34. Rgf3 {[%emt 0:00:06]} b5 {[%emt 0:00:01]} 35. Qxc5 {[%emt 0:00:06]} bxc4 {[%emt 0:00:02]} 36. Qd4+ {[%emt 0:00:01]} Kh7 {[%emt 0:00:02]} 37. d6 {[%emt 0:00:03]} f5 {[%emt 0:00:03]} 38. Qe3 {[%emt 0:00:05]} Qg4+ {[%emt 0:00:02]} 39. Rg3 {[%emt 0:00:01]} Qe4 {[%emt 0:00:01]} 40. Qxe4 {[%emt 0:00:02]} fxe4 {[%emt 0:00:00]} 41. Rd1 {[%emt 0:00:02]} Kg7 {[%emt 0:00:02]} 42. Re3 {[%emt 0:00:01]} Kf6 {[%emt 0:00:01]} 43. Rxe4 {[%emt 0:00:02]} a6 {[%emt 0:00:02]} 44. Rxc4 {[%emt 0:00:02]} 1-0